[Event "Argentine Superior Chess Championship 2023"]
[Site "https://www.chess.com"]
[Date "2023.11.07"]
[Round "11"]
[White "Perez Ponsa, Federico"]
[Black "Tokman, Ariel"]
[Result "1/2-1/2"]
[Board "1"]
[TimeControl "5400+30"]
[WhiteFideId "117927"]
[BlackFideId "117420"]
[WhiteElo "2524"]
[BlackElo "2305"]
[WhiteTeam "ARG"]
[BlackTeam "ARG"]
[WhiteClock "0:02:34"]
[BlackClock "0:05:24"]

1. e4 {[%clk 1:23:35]}  c6 {[%clk 1:30:55]} 2. d4 {[%clk 1:24:00]}  d5 {[%clk 1:31:14]} 3. e5 {[%clk 1:24:24]}  c5 {[%clk 1:31:32]} 4. Nf3 {[%clk 1:24:48]}  cxd4 {[%clk 1:31:29]} 5. Nxd4 {[%clk 1:25:11]}  e6 {[%clk 1:31:06]} 6. Nd2 {[%clk 1:23:43]}  Nc6 {[%clk 1:25:00]} 7. N2f3 {[%clk 1:23:48]}  Nge7 {[%clk 1:23:43]} 8. Bd3 {[%clk 1:21:01]}  Nxd4 {[%clk 1:22:58]} 9. Nxd4 {[%clk 1:21:19]}  Nc6 {[%clk 1:23:11]} 10. Nf3 {[%clk 1:21:02]}  Qc7 {[%clk 1:23:19]} 11. Qe2 {[%clk 1:20:04]}  Nb4 {[%clk 1:18:58]} 12. h4 {[%clk 1:01:19]}  Bd7 {[%clk 1:16:14]} 13. h5 {[%clk 0:58:06]}  h6 {[%clk 1:15:33]} 14. Rh4 {[%clk 0:54:41]}  O-O-O {[%clk 1:12:15]} 15. Bd2 {[%clk 0:50:27]}  Nxd3+ {[%clk 1:09:42]} 16. cxd3 {[%clk 0:46:46]}  Kb8 {[%clk 1:08:04]} 17. Rf4 {[%clk 0:41:20]}  Be8 {[%clk 0:59:16]} 18. Rc1 {[%clk 0:37:03]}  Qb6 {[%clk 0:57:35]} 19. Be3 {[%clk 0:30:44]}  Qa5+ {[%clk 0:39:58]} 20. Kf1 {[%clk 0:28:45]}  Rc8 {[%clk 0:30:01]} 21. Rxc8+ {[%clk 0:26:07]}  Kxc8 {[%clk 0:28:51]} 22. a3 {[%clk 0:26:16]}  Rg8 {[%clk 0:26:17]} 23. g3 {[%clk 0:22:16]}  Be7 {[%clk 0:25:04]} 24. Bd2 {[%clk 0:20:11]}  Qc7 {[%clk 0:20:56]} 25. Bb4 {[%clk 0:19:15]}  Kb8 {[%clk 0:20:14]} 26. Nd4 {[%clk 0:15:26]}  Bxb4 {[%clk 0:16:41]} 27. axb4 {[%clk 0:15:49]}  a6 {[%clk 0:17:00]} 28. Kg2 {[%clk 0:14:09]}  Ka8 {[%clk 0:14:41]} 29. Qe3 {[%clk 0:11:22]}  Kb8 {[%clk 0:13:09]} 30. Qe1 {[%clk 0:08:35]}  Qe7 {[%clk 0:11:29]} 31. Qc3 {[%clk 0:05:54]}  Qc7 {[%clk 0:10:30]} 32. Rf3 {[%clk 0:04:37]}  Qxc3 {[%clk 0:08:55]} 33. bxc3 {[%clk 0:05:06]}  Kc7 {[%clk 0:08:54]} 34. Re3 {[%clk 0:03:52]}  Kd8 {[%clk 0:08:11]} 35. Re1 {[%clk 0:03:08]}  Bd7 {[%clk 0:07:53]} 36. Kf3 {[%clk 0:02:42]}  Ke7 {[%clk 0:07:03]} 37. Ke3 {[%clk 0:02:38]}  f6 {[%clk 0:06:11]} 38. Kd2 {[%clk 0:02:41]}  fxe5 {[%clk 0:04:22]} 39. Rxe5 {[%clk 0:03:00]}  Kd6 {[%clk 0:04:11]} 40. f4 {[%clk 0:33:03]}  g5 {[%clk 0:32:58]} 41. c4 {[%clk 0:23:05]}  gxf4 {[%clk 0:32:23]} 42. gxf4 {[%clk 0:23:24]}  b6 {[%clk 0:20:29]} 43. cxd5 {[%clk 0:19:14]}  exd5 {[%clk 0:20:52]} 44. Nf5+ {[%clk 0:19:25]}  Bxf5 {[%clk 0:21:08]} 45. Rxf5 {[%clk 0:19:54]}  Ke6 {[%clk 0:21:16]} 46. Re5+ {[%clk 0:20:18]}  Kd6 {[%clk 0:21:41]} 47. Rf5 {[%clk 0:17:16]}  Ke6 {[%clk 0:22:03]} 48. Re5+ {[%clk 0:17:42]}  Kd6 {[%clk 0:22:31]} 49. Ke3 {[%clk 0:18:08]}  Rg4 {[%clk 0:21:14]} 50. Rf5 {[%clk 0:15:09]}  Ke6 {[%clk 0:21:02]} 51. Rf8 {[%clk 0:12:37]}  a5 {[%clk 0:13:26]} 52. Rb8 {[%clk 0:08:55]}  axb4 {[%clk 0:13:02]} 53. Rxb6+ {[%clk 0:09:19]}  Kf5 {[%clk 0:12:51]} 54. Rxb4 {[%clk 0:09:18]}  Rg3+ {[%clk 0:11:49]} 55. Kd4 {[%clk 0:09:01]}  Rf3 {[%clk 0:07:54]} 56. Rb6 {[%clk 0:08:19]}  Rxf4+ {[%clk 0:07:25]} 57. Kxd5 {[%clk 0:08:43]}  Kg5 {[%clk 0:07:38]} 58. Ke5 {[%clk 0:00:35]}  Rf5+ {[%clk 0:06:18]} 59. Ke4 {[%clk 0:00:58]}  Rf4+ {[%clk 0:06:30]} 60. Ke5 {[%clk 0:01:06]}  Rf5+ {[%clk 0:06:55]} 61. Ke4 {[%clk 0:01:33]}  Rf4+ {[%clk 0:06:46]} 62. Ke3 {[%clk 0:02:01]}  Rf5 {[%clk 0:07:06]} 63. d4 {[%clk 0:02:19]}  Kxh5 {[%clk 0:07:26]} 64. Ke4 {[%clk 0:02:25]}  Kg5 {[%clk 0:06:27]} 65. Rb8 {[%clk 0:01:53]}  Ra5 {[%clk 0:04:05]} 66. d5 {[%clk 0:02:05]}  Kf6 {[%clk 0:03:00]} 67. Rb6+ {[%clk 0:02:15]}  Ke7 {[%clk 0:03:25]} 68. Ke5 {[%clk 0:02:41]}  Ra1 {[%clk 0:03:33]} 69. Rb7+ {[%clk 0:03:06]}  Kd8 {[%clk 0:03:12]} 70. Ke6 {[%clk 0:03:25]}  Rg1 {[%clk 0:02:27]} 71. Rd7+ {[%clk 0:01:02]}  Ke8 {[%clk 0:02:43]} 72. Re7+ {[%clk 0:00:42]}  Kd8 {[%clk 0:03:04]} 73. Rd7+ {[%clk 0:00:34]}  Ke8 {[%clk 0:03:30]} 74. Rh7 {[%clk 0:00:58]}  Rg6+ {[%clk 0:03:46]} 75. Kf5 {[%clk 0:01:16]}  Ra6 {[%clk 0:03:49]} 76. Ke5 {[%clk 0:00:48]}  Kd8 {[%clk 0:03:53]} 77. Kd4 {[%clk 0:00:58]}  Rg6 {[%clk 0:04:04]} 78. Ra7 {[%clk 0:01:17]}  Rf6 {[%clk 0:04:04]} 79. Ke5 {[%clk 0:01:03]}  Rb6 {[%clk 0:04:20]} 80. d6 {[%clk 0:01:18]}  Rb1 {[%clk 0:04:32]} 81. Ke6 {[%clk 0:01:41]}  Re1+ {[%clk 0:04:59]} 82. Kd5 {[%clk 0:02:07]}  Rd1+ {[%clk 0:05:24]} 83. Ke6 {[%clk 0:02:34]} 1/2-1/2

[Event "Argentine Superior Chess Championship 2023"]
[Site "https://www.chess.com"]
[Date "2023.11.07"]
[Round "11"]
[White "Krysa, Leandro"]
[Black "Peralta, Fernando"]
[Result "1/2-1/2"]
[Board "2"]
[TimeControl "5400+30"]
[WhiteFideId "116807"]
[BlackFideId "105309"]
[WhiteElo "2545"]
[BlackElo "2580"]
[WhiteTeam "ARG"]
[BlackTeam "ARG"]
[WhiteClock "0:00:39"]
[BlackClock "0:01:56"]

1. g3 {[%clk 1:30:51]}  d5 {[%clk 1:29:49]} 2. Nf3 {[%clk 1:31:04]}  Nf6 {[%clk 1:30:07]} 3. Bg2 {[%clk 1:31:23]}  e6 {[%clk 1:30:32]} 4. O-O {[%clk 1:31:17]}  Be7 {[%clk 1:30:56]} 5. c4 {[%clk 1:30:34]}  O-O {[%clk 1:31:04]} 6. d4 {[%clk 1:30:34]}  c6 {[%clk 1:31:17]} 7. Nc3 {[%clk 1:29:38]}  a5 {[%clk 1:31:07]} 8. Re1 {[%clk 1:29:28]}  Ne4 {[%clk 1:29:11]} 9. Bf4 {[%clk 1:28:28]}  f5 {[%clk 1:14:50]} 10. Nxe4 {[%clk 1:26:30]}  dxe4 {[%clk 1:04:26]} 11. Ne5 {[%clk 1:26:22]}  g5 {[%clk 1:02:54]} 12. Be3 {[%clk 1:24:03]}  c5 {[%clk 0:58:09]} 13. Qd2 {[%clk 1:10:17]}  cxd4 {[%clk 0:46:20]} 14. Bxd4 {[%clk 1:10:06]}  Bb4 {[%clk 0:38:16]} 15. Qe3 {[%clk 1:10:26]}  Bxe1 {[%clk 0:38:41]} 16. Rxe1 {[%clk 1:10:42]}  Ra6 {[%clk 0:30:10]} 17. c5 {[%clk 0:48:06]}  Nc6 {[%clk 0:29:42]} 18. Nxc6 {[%clk 0:39:53]}  Rxc6 {[%clk 0:30:06]} 19. f3 {[%clk 0:38:50]}  Qe7 {[%clk 0:25:02]} 20. fxe4 {[%clk 0:34:32]}  f4 {[%clk 0:25:16]} 21. gxf4 {[%clk 0:33:03]}  gxf4 {[%clk 0:23:09]} 22. Qb3 {[%clk 0:32:47]}  Rf7 {[%clk 0:21:32]} 23. e5 {[%clk 0:28:11]}  Rxc5 {[%clk 0:14:04]} 24. Bxc5 {[%clk 0:26:14]}  Qxc5+ {[%clk 0:14:34]} 25. Kh1 {[%clk 0:26:00]}  Qxe5 {[%clk 0:14:59]} 26. Bf3 {[%clk 0:16:23]}  b5 {[%clk 0:12:45]} 27. Qd3 {[%clk 0:13:29]}  Bd7 {[%clk 0:11:31]} 28. Rg1+ {[%clk 0:12:51]}  Kh8 {[%clk 0:11:43]} 29. b3 {[%clk 0:08:38]}  Rg7 {[%clk 0:07:07]} 30. Rxg7 {[%clk 0:07:41]}  Qxg7 {[%clk 0:07:29]} 31. Qd2 {[%clk 0:05:39]}  Qa1+ {[%clk 0:02:45]} 32. Kg2 {[%clk 0:06:01]}  Qg7+ {[%clk 0:03:12]} 33. Kf2 {[%clk 0:02:53]}  e5 {[%clk 0:02:30]} 34. Qd6 {[%clk 0:01:41]}  h5 {[%clk 0:01:12]} 35. Be4 {[%clk 0:00:46]}  Kg8 {[%clk 0:01:05]} 36. Bd5+ {[%clk 0:00:39]}  Kh7 {[%clk 0:01:03]} 37. Be4+ {[%clk 0:01:01]}  Kg8 {[%clk 0:01:31]} 38. Bd5+ {[%clk 0:00:35]}  Kh7 {[%clk 0:01:56]} 39. Be4+ {[%clk 0:00:39]} 1/2-1/2

[Event "Argentine Superior Chess Championship 2023"]
[Site "https://www.chess.com"]
[Date "2023.11.07"]
[Round "11"]
[White "Valerga, Diego"]
[Black "Acosta, Pablo Ismael"]
[Result "0-1"]
[Board "3"]
[TimeControl "5400+30"]
[WhiteFideId "100587"]
[BlackFideId "124311"]
[WhiteElo "2429"]
[BlackElo "2477"]
[WhiteTeam "ARG"]
[BlackTeam "ARG"]
[WhiteClock "0:30:41"]
[BlackClock "0:31:02"]

1. d4 {[%clk 1:30:56]}  d5 {[%clk 1:20:10]} 2. c4 {[%clk 1:31:18]}  e6 {[%clk 1:20:31]} 3. Nc3 {[%clk 1:31:23]}  Nf6 {[%clk 1:20:55]} 4. Nf3 {[%clk 1:29:48]}  c6 {[%clk 1:20:48]} 5. Bg5 {[%clk 1:28:52]}  Nbd7 {[%clk 1:19:42]} 6. e3 {[%clk 1:29:13]}  h6 {[%clk 1:19:43]} 7. Bh4 {[%clk 1:29:30]}  Be7 {[%clk 1:20:08]} 8. Bd3 {[%clk 1:26:57]}  dxc4 {[%clk 1:20:06]} 9. Bxc4 {[%clk 1:27:19]}  b5 {[%clk 1:20:32]} 10. Bd3 {[%clk 1:26:48]}  Bb7 {[%clk 1:20:42]} 11. O-O {[%clk 1:27:06]}  O-O {[%clk 1:19:04]} 12. a3 {[%clk 1:19:14]}  a5 {[%clk 1:18:51]} 13. Qe2 {[%clk 1:17:08]}  b4 {[%clk 1:18:53]} 14. Na4 {[%clk 1:17:14]}  c5 {[%clk 1:18:53]} 15. Bxf6 {[%clk 1:08:06]}  Bxf6 {[%clk 1:15:31]} 16. dxc5 {[%clk 1:02:12]}  Qe7 {[%clk 1:12:17]} 17. Rfc1 {[%clk 1:00:50]}  Rac8 {[%clk 1:09:02]} 18. axb4 {[%clk 0:55:24]}  axb4 {[%clk 1:08:23]} 19. Nd2 {[%clk 0:41:03]}  Nxc5 {[%clk 1:07:43]} 20. Nxc5 {[%clk 0:41:26]}  Bxb2 {[%clk 0:43:05]} 21. Nxb7 {[%clk 0:33:37]}  Rxc1+ {[%clk 0:23:18]} 22. Rxc1 {[%clk 0:34:00]}  Bxc1 {[%clk 0:23:45]} 23. Na5 {[%clk 0:31:27]}  Bxd2 {[%clk 0:19:52]} 24. Qxd2 {[%clk 0:31:42]}  Rc8 {[%clk 0:16:49]} 25. Nc4 {[%clk 0:20:18]}  b3 {[%clk 0:09:01]} 26. Kf1 {[%clk 0:17:07]}  Qh4 {[%clk 0:03:48]} 27. Qb4 {[%clk 0:09:52]}  Qxh2 {[%clk 0:04:14]} 28. Qb7 {[%clk 0:09:31]}  Rb8 {[%clk 0:04:11]} 29. Qe4 {[%clk 0:08:14]}  b2 {[%clk 0:03:27]} 30. Qh7+ {[%clk 0:06:59]}  Kf8 {[%clk 0:03:53]} 31. Ke2 {[%clk 0:07:18]}  Qh5+ {[%clk 0:01:17]} 32. f3 {[%clk 0:04:27]}  Ke7 {[%clk 0:01:28]} 33. Qxg7 {[%clk 0:02:31]}  b1=Q {[%clk 0:01:27]} 34. Bxb1 {[%clk 0:02:45]}  Rxb1 {[%clk 0:01:54]} 35. Ne5 {[%clk 0:02:23]}  Rb5 {[%clk 0:01:30]} 36. Nc6+ {[%clk 0:01:56]}  Kd7 {[%clk 0:01:09]} 37. Qh8 {[%clk 0:00:38]}  Kxc6 {[%clk 0:00:34]} 38. Qc8+ {[%clk 0:00:58]}  Kb6 {[%clk 0:00:45]} 39. Qd8+ {[%clk 0:01:10]}  Kc5 {[%clk 0:00:59]} 40. Qc7+ {[%clk 0:30:41]}  Kb4 {[%clk 0:31:02]} 0-1

[Event "Argentine Superior Chess Championship 2023"]
[Site "https://www.chess.com"]
[Date "2023.11.07"]
[Round "11"]
[White "Francisco Guecamburu, Candela Be"]
[Black "Villca, Julian"]
[Result "1/2-1/2"]
[Board "4"]
[TimeControl "5400+30"]
[WhiteFideId "160911"]
[BlackFideId "134902"]
[WhiteElo "2349"]
[BlackElo "2398"]
[WhiteTeam "ARG"]
[BlackTeam "ARG"]
[WhiteClock "0:04:58"]
[BlackClock "0:02:39"]

1. e4 {[%clk 1:30:55]}  e5 {[%clk 1:30:55]} 2. Nf3 {[%clk 1:31:17]}  Nc6 {[%clk 1:31:21]} 3. Nc3 {[%clk 1:31:38]}  Nf6 {[%clk 1:31:47]} 4. d4 {[%clk 1:31:59]}  exd4 {[%clk 1:32:16]} 5. Nxd4 {[%clk 1:32:20]}  Bb4 {[%clk 1:32:42]} 6. Nxc6 {[%clk 1:32:42]}  bxc6 {[%clk 1:33:07]} 7. Bd3 {[%clk 1:33:05]}  d5 {[%clk 1:33:34]} 8. exd5 {[%clk 1:33:26]}  cxd5 {[%clk 1:34:03]} 9. O-O {[%clk 1:33:44]}  O-O {[%clk 1:34:27]} 10. h3 {[%clk 1:34:11]}  c6 {[%clk 1:22:22]} 11. Qf3 {[%clk 1:34:32]}  Re8 {[%clk 1:22:25]} 12. Bf4 {[%clk 1:28:44]}  Be6 {[%clk 1:17:44]} 13. Ne2 {[%clk 1:18:30]}  Qb6 {[%clk 1:14:41]} 14. c3 {[%clk 1:05:17]}  Bf8 {[%clk 1:14:07]} 15. b4 {[%clk 1:04:48]}  a5 {[%clk 1:12:34]} 16. Be3 {[%clk 1:02:20]}  Qc7 {[%clk 1:09:38]} 17. a3 {[%clk 0:57:08]}  c5 {[%clk 1:05:09]} 18. bxc5 {[%clk 0:54:53]}  Nd7 {[%clk 1:02:38]} 19. Bf4 {[%clk 0:47:50]}  Qxc5 {[%clk 1:02:18]} 20. a4 {[%clk 0:46:46]}  Rec8 {[%clk 0:58:26]} 21. Qg3 {[%clk 0:36:57]}  Nf6 {[%clk 0:52:43]} 22. Be5 {[%clk 0:34:39]}  Ne4 {[%clk 0:52:34]} 23. Qf4 {[%clk 0:34:33]}  Qe7 {[%clk 0:47:33]} 24. Bxe4 {[%clk 0:25:17]}  dxe4 {[%clk 0:47:52]} 25. Ng3 {[%clk 0:25:39]}  Re8 {[%clk 0:41:30]} 26. Bd4 {[%clk 0:19:35]}  f5 {[%clk 0:40:30]} 27. Nxf5 {[%clk 0:19:21]}  Qf7 {[%clk 0:40:47]} 28. g4 {[%clk 0:19:46]}  Rad8 {[%clk 0:39:34]} 29. Rfe1 {[%clk 0:17:31]}  Bxf5 {[%clk 0:39:00]} 30. Qxf5 {[%clk 0:17:55]}  Qxf5 {[%clk 0:38:24]} 31. gxf5 {[%clk 0:18:23]}  Rd5 {[%clk 0:33:41]} 32. Rab1 {[%clk 0:11:39]}  Rxf5 {[%clk 0:22:19]} 33. Rb5 {[%clk 0:12:03]}  g6 {[%clk 0:22:44]} 34. Rxf5 {[%clk 0:09:30]}  gxf5 {[%clk 0:23:13]} 35. Rb1 {[%clk 0:09:52]}  f4 {[%clk 0:23:38]} 36. Rb5 {[%clk 0:09:45]}  Bd6 {[%clk 0:21:57]} 37. Rxa5 {[%clk 0:06:51]}  Kf7 {[%clk 0:17:22]} 38. Ra7+ {[%clk 0:06:33]}  Ke6 {[%clk 0:17:06]} 39. Ra6 {[%clk 0:01:57]}  Kd5 {[%clk 0:17:22]} 40. Kf1 {[%clk 0:31:32]}  Rb8 {[%clk 0:45:27]} 41. Ke2 {[%clk 0:18:30]}  Rb2+ {[%clk 0:38:07]} 42. Kd1 {[%clk 0:18:34]}  Ra2 {[%clk 0:36:44]} 43. Ra7 {[%clk 0:18:39]}  Kc4 {[%clk 0:35:53]} 44. Rxh7 {[%clk 0:18:18]}  e3 {[%clk 0:26:48]} 45. Bxe3 {[%clk 0:16:42]}  fxe3 {[%clk 0:27:10]} 46. fxe3 {[%clk 0:17:07]}  Kd3 {[%clk 0:27:35]} 47. Ke1 {[%clk 0:16:05]}  Kxe3 {[%clk 0:27:39]} 48. Kf1 {[%clk 0:16:28]}  Bf4 {[%clk 0:25:26]} 49. Re7+ {[%clk 0:13:18]}  Kf3 {[%clk 0:25:49]} 50. h4 {[%clk 0:13:26]}  Rh2 {[%clk 0:25:27]} 51. Rg7 {[%clk 0:10:00]}  Rh1+ {[%clk 0:25:47]} 52. Rg1 {[%clk 0:10:25]}  Rxh4 {[%clk 0:26:13]} 53. Rg7 {[%clk 0:09:54]}  Rh1+ {[%clk 0:20:01]} 54. Rg1 {[%clk 0:10:19]}  Rh7 {[%clk 0:20:28]} 55. Rg8 {[%clk 0:09:58]}  Rb7 {[%clk 0:20:14]} 56. Re8 {[%clk 0:10:10]}  Rb2 {[%clk 0:20:35]} 57. a5 {[%clk 0:09:13]}  Ra2 {[%clk 0:21:00]} 58. c4 {[%clk 0:09:07]}  Rxa5 {[%clk 0:21:25]} 59. c5 {[%clk 0:09:15]}  Rxc5 {[%clk 0:21:51]} 60. Re7 {[%clk 0:09:28]}  Rc8 {[%clk 0:22:14]} 61. Re2 {[%clk 0:07:23]}  Bg3 {[%clk 0:22:36]} 62. Rf2+ {[%clk 0:07:49]}  Kg4 {[%clk 0:21:56]} 63. Rb2 {[%clk 0:05:41]}  Re8 {[%clk 0:21:43]} 64. Kg2 {[%clk 0:05:18]}  Bf4 {[%clk 0:22:01]} 65. Rc2 {[%clk 0:05:07]}  Rh8 {[%clk 0:22:25]} 66. Re2 {[%clk 0:05:10]}  Rh7 {[%clk 0:21:55]} 67. Re8 {[%clk 0:05:10]}  Rh2+ {[%clk 0:22:18]} 68. Kf1 {[%clk 0:05:13]}  Kf3 {[%clk 0:21:59]} 69. Rg8 {[%clk 0:05:36]}  Bh6 {[%clk 0:21:27]} 70. Rg6 {[%clk 0:05:33]}  Rb2 {[%clk 0:21:33]} 71. Re6 {[%clk 0:05:46]}  Bg5 {[%clk 0:21:25]} 72. Re8 {[%clk 0:05:46]}  Rb1+ {[%clk 0:02:33]} 73. Re1 {[%clk 0:06:11]}  Rb8 {[%clk 0:02:41]} 74. Re2 {[%clk 0:06:28]}  Be3 {[%clk 0:02:58]} 75. Rf2+ {[%clk 0:06:54]}  Ke4 {[%clk 0:03:23]} 76. Rf7 {[%clk 0:06:28]}  Rb1+ {[%clk 0:02:00]} 77. Ke2 {[%clk 0:05:13]}  Rb2+ {[%clk 0:02:25]} 78. Kf1 {[%clk 0:05:27]}  Bc5 {[%clk 0:02:39]} 79. Rf6 {[%clk 0:04:58]}  Ke5 {[%clk 0:02:39]} 1/2-1/2

[Event "Argentine Superior Chess Championship 2023"]
[Site "https://www.chess.com"]
[Date "2023.11.07"]
[Round "11"]
[White "Miranda, Rafael"]
[Black "Tristan, Leonardo"]
[Result "0-1"]
[Board "5"]
[TimeControl "5400+30"]
[WhiteFideId "130990"]
[BlackFideId "113816"]
[WhiteElo "2343"]
[BlackElo "2524"]
[WhiteTeam "ARG"]
[BlackTeam "ARG"]
[WhiteClock "0:07:46"]
[BlackClock "0:10:00"]

1. e4 {[%clk 1:30:56]}  Nf6 {[%clk 1:30:54]} 2. e5 {[%clk 1:31:01]}  Nd5 {[%clk 1:31:18]} 3. d4 {[%clk 1:31:19]}  d6 {[%clk 1:31:41]} 4. c4 {[%clk 1:30:58]}  Nb6 {[%clk 1:32:04]} 5. exd6 {[%clk 1:30:58]}  cxd6 {[%clk 1:32:30]} 6. Nc3 {[%clk 1:31:07]}  g6 {[%clk 1:32:54]} 7. Be3 {[%clk 1:31:06]}  Bg7 {[%clk 1:33:18]} 8. Rc1 {[%clk 1:30:41]}  O-O {[%clk 1:33:39]} 9. Be2 {[%clk 1:27:36]}  d5 {[%clk 1:22:01]} 10. c5 {[%clk 1:21:47]}  Nc4 {[%clk 1:22:07]} 11. Bxc4 {[%clk 1:16:22]}  dxc4 {[%clk 1:22:31]} 12. Qa4 {[%clk 1:08:41]}  Nc6 {[%clk 0:51:44]} 13. Nge2 {[%clk 0:54:56]}  Nxd4 {[%clk 0:46:52]} 14. Nxd4 {[%clk 0:41:35]}  Bxd4 {[%clk 0:47:13]} 15. Rd1 {[%clk 0:38:25]}  e5 {[%clk 0:46:55]} 16. O-O {[%clk 0:35:52]}  Be6 {[%clk 0:41:47]} 17. Ne2 {[%clk 0:27:17]}  Bd7 {[%clk 0:38:57]} 18. Qxc4 {[%clk 0:27:07]}  Bxe3 {[%clk 0:39:24]} 19. fxe3 {[%clk 0:27:27]}  Be6 {[%clk 0:39:46]} 20. Qe4 {[%clk 0:22:28]}  Qc7 {[%clk 0:39:25]} 21. b4 {[%clk 0:22:30]}  f5 {[%clk 0:24:05]} 22. Qc2 {[%clk 0:21:38]}  a5 {[%clk 0:23:46]} 23. a3 {[%clk 0:14:27]}  axb4 {[%clk 0:17:34]} 24. axb4 {[%clk 0:14:56]}  Ra2 {[%clk 0:15:58]} 25. Qd3 {[%clk 0:15:18]}  Qf7 {[%clk 0:16:13]} 26. Nc1 {[%clk 0:11:09]}  Bc4 {[%clk 0:14:46]} 27. Qb1 {[%clk 0:11:27]}  Ra3 {[%clk 0:13:45]} 28. Rfe1 {[%clk 0:10:05]}  f4 {[%clk 0:14:02]} 29. exf4 {[%clk 0:10:03]}  exf4 {[%clk 0:12:22]} 30. Qe4 {[%clk 0:09:50]}  f3 {[%clk 0:12:24]} 31. gxf3 {[%clk 0:10:13]}  Rxf3 {[%clk 0:12:40]} 32. Qh4 {[%clk 0:08:14]}  Rf4 {[%clk 0:11:35]} 33. Qg3 {[%clk 0:07:46]}  Qf5 {[%clk 0:10:00]} 0-1

[Event "Argentine Superior Chess Championship 2023"]
[Site "https://www.chess.com"]
[Date "2023.11.07"]
[Round "11"]
[White "Gomez, Carlos David"]
[Black "Silva, Luca"]
[Result "0-1"]
[Board "6"]
[TimeControl "5400+30"]
[WhiteFideId "114669"]
[BlackFideId "147370"]
[WhiteElo "2336"]
[BlackElo "2301"]
[WhiteTeam "ARG"]
[BlackTeam "ARG"]
[WhiteClock "0:34:14"]
[BlackClock "0:36:20"]

1. c4 {[%clk 1:30:46]}  c5 {[%clk 1:29:40]} 2. Nf3 {[%clk 1:31:01]}  Nc6 {[%clk 1:30:04]} 3. Nc3 {[%clk 1:30:58]}  g6 {[%clk 1:30:16]} 4. a3 {[%clk 1:29:07]}  Bg7 {[%clk 1:30:10]} 5. g3 {[%clk 1:28:19]}  d6 {[%clk 1:28:04]} 6. Bg2 {[%clk 1:28:22]}  Rb8 {[%clk 1:21:19]} 7. O-O {[%clk 1:24:18]}  a6 {[%clk 1:21:12]} 8. Ne1 {[%clk 1:23:31]}  Nf6 {[%clk 1:15:32]} 9. Nc2 {[%clk 1:23:25]}  Be6 {[%clk 1:14:15]} 10. Ne3 {[%clk 1:20:21]}  O-O {[%clk 1:12:43]} 11. f4 {[%clk 0:47:42]}  Bd7 {[%clk 1:05:22]} 12. Rb1 {[%clk 0:44:00]}  b5 {[%clk 1:02:38]} 13. d3 {[%clk 0:43:16]}  Nd4 {[%clk 0:55:57]} 14. cxb5 {[%clk 0:42:49]}  axb5 {[%clk 0:54:29]} 15. b4 {[%clk 0:43:08]}  e6 {[%clk 0:52:13]} 16. g4 {[%clk 0:41:39]}  Qb6 {[%clk 0:47:01]} 17. g5 {[%clk 0:29:02]}  Nh5 {[%clk 0:44:46]} 18. bxc5 {[%clk 0:29:21]}  Qxc5 {[%clk 0:32:26]} 19. Ne4 {[%clk 0:29:06]}  Qa7 {[%clk 0:30:27]} 20. Kh1 {[%clk 0:26:30]}  d5 {[%clk 0:28:45]} 21. Ng3 {[%clk 0:25:31]}  Nxg3+ {[%clk 0:28:54]} 22. hxg3 {[%clk 0:25:55]}  Rfc8 {[%clk 0:26:44]} 23. Ng4 {[%clk 0:25:10]}  Nf5 {[%clk 0:26:56]} 24. Kh2 {[%clk 0:25:00]}  d4 {[%clk 0:23:17]} 25. Nf6+ {[%clk 0:18:06]}  Bxf6 {[%clk 0:23:43]} 26. gxf6 {[%clk 0:18:31]}  Bc6 {[%clk 0:23:38]} 27. g4 {[%clk 0:18:47]}  Bxg2 {[%clk 0:20:04]} 28. Kxg2 {[%clk 0:18:50]}  Qb7+ {[%clk 0:16:53]} 29. Kh3 {[%clk 0:18:56]}  Nd6 {[%clk 0:16:06]} 30. Rb4 {[%clk 0:19:07]}  Qd5 {[%clk 0:15:53]} 31. Bb2 {[%clk 0:19:04]}  h5 {[%clk 0:14:52]} 32. e4 {[%clk 0:16:28]}  dxe3 {[%clk 0:13:59]} 33. Rd4 {[%clk 0:16:09]}  Qc5 {[%clk 0:11:56]} 34. Rg1 {[%clk 0:15:44]}  hxg4+ {[%clk 0:11:22]} 35. Qxg4 {[%clk 0:15:52]}  Nf5 {[%clk 0:11:25]} 36. Rd7 {[%clk 0:10:35]}  Qf8 {[%clk 0:09:49]} 37. Qxg6+ {[%clk 0:06:58]}  fxg6 {[%clk 0:09:47]} 38. Rxg6+ {[%clk 0:07:21]}  Kh8 {[%clk 0:10:06]} 39. Rdg7 {[%clk 0:06:29]}  e2 {[%clk 0:07:16]} 40. Rg5 {[%clk 0:34:14]}  Qxg7 {[%clk 0:36:20]} 0-1

[Event "Argentine Superior Chess Championship 2023"]
[Site "https://www.chess.com"]
[Date "2023.11.07"]
[Round "12"]
[White "Perez Ponsa, Federico"]
[Black "Peralta, Fernando"]
[Result "1/2-1/2"]
[Board "1"]
[TimeControl "15 + 10"]
[WhiteFideId "117927"]
[BlackFideId "105309"]
[WhiteElo "2592"]
[BlackElo "2577"]
[WhiteTeam "ARG"]
[BlackTeam "ARG"]
[WhiteClock "0:00:14"]
[BlackClock "0:01:06"]

1. d4 {[%clk 0:15:17]}  Nf6 {[%clk 0:15:17]} 2. c4 {[%clk 0:15:26]}  e6 {[%clk 0:15:25]} 3. Nf3 {[%clk 0:15:35]}  b6 {[%clk 0:15:29]} 4. g3 {[%clk 0:15:43]}  Bb7 {[%clk 0:15:38]} 5. Bg2 {[%clk 0:15:52]}  Be7 {[%clk 0:15:41]} 6. O-O {[%clk 0:15:53]}  O-O {[%clk 0:15:49]} 7. Nc3 {[%clk 0:15:56]}  Ne4 {[%clk 0:15:56]} 8. Qc2 {[%clk 0:16:05]}  Nxc3 {[%clk 0:16:01]} 9. Qxc3 {[%clk 0:16:13]}  d6 {[%clk 0:16:05]} 10. Qd3 {[%clk 0:16:11]}  Nc6 {[%clk 0:16:04]} 11. Bd2 {[%clk 0:13:29]}  Bf6 {[%clk 0:12:44]} 12. Bc3 {[%clk 0:12:41]}  e5 {[%clk 0:09:57]} 13. dxe5 {[%clk 0:10:20]}  dxe5 {[%clk 0:09:53]} 14. Qxd8 {[%clk 0:07:55]}  Raxd8 {[%clk 0:09:40]} 15. Nxe5 {[%clk 0:07:20]}  Bxe5 {[%clk 0:08:46]} 16. Bxe5 {[%clk 0:05:44]}  Nxe5 {[%clk 0:08:54]} 17. Bxb7 {[%clk 0:05:53]}  Rd2 {[%clk 0:07:46]} 18. b3 {[%clk 0:05:45]}  Rfd8 {[%clk 0:06:43]} 19. Rfe1 {[%clk 0:03:27]}  g5 {[%clk 0:03:07]} 20. Bd5 {[%clk 0:01:26]}  c6 {[%clk 0:02:35]} 21. Be4 {[%clk 0:01:34]}  Kg7 {[%clk 0:02:16]} 22. f3 {[%clk 0:01:22]}  a5 {[%clk 0:01:27]} 23. Kf2 {[%clk 0:00:57]}  Rb2 {[%clk 0:01:00]} 24. Reb1 {[%clk 0:00:48]}  Rbd2 {[%clk 0:00:19]} 25. Ke1 {[%clk 0:00:45]}  a4 {[%clk 0:00:12]} 26. Rd1 {[%clk 0:00:41]}  Rxd1+ {[%clk 0:00:13]} 27. Rxd1 {[%clk 0:00:50]}  Rxd1+ {[%clk 0:00:11]} 28. Kxd1 {[%clk 0:00:58]}  axb3 {[%clk 0:00:20]} 29. axb3 {[%clk 0:01:07]}  c5 {[%clk 0:00:25]} 30. Kd2 {[%clk 0:01:00]}  h6 {[%clk 0:00:31]} 31. Ke3 {[%clk 0:01:07]}  Kf6 {[%clk 0:00:37]} 32. h3 {[%clk 0:01:07]}  Ke7 {[%clk 0:00:19]} 33. Bd5 {[%clk 0:01:06]}  f5 {[%clk 0:00:14]} 34. f4 {[%clk 0:01:06]}  gxf4+ {[%clk 0:00:23]} 35. gxf4 {[%clk 0:00:25]}  Nd7 {[%clk 0:00:33]} 36. Kf3 {[%clk 0:00:23]}  Nf6 {[%clk 0:00:27]} 37. Bb7 {[%clk 0:00:26]}  Ne8 {[%clk 0:00:25]} 38. e4 {[%clk 0:00:12]}  Nd6 {[%clk 0:00:34]} 39. Bd5 {[%clk 0:00:19]}  fxe4+ {[%clk 0:00:42]} 40. Bxe4 {[%clk 0:00:28]}  b5 {[%clk 0:00:38]} 41. cxb5 {[%clk 0:00:28]}  Nxb5 {[%clk 0:00:47]} 42. Ke3 {[%clk 0:00:21]}  Nd6 {[%clk 0:00:47]} 43. Bd3 {[%clk 0:00:24]}  Ke6 {[%clk 0:00:42]} 44. Kf3 {[%clk 0:00:25]}  Kf6 {[%clk 0:00:39]} 45. Kg4 {[%clk 0:00:31]}  Ne8 {[%clk 0:00:30]} 46. Bb5 {[%clk 0:00:29]}  Nd6 {[%clk 0:00:30]} 47. Bd3 {[%clk 0:00:20]}  Ne8 {[%clk 0:00:43]} 48. Be2 {[%clk 0:00:23]}  Kg6 {[%clk 0:00:39]} 49. Kf3 {[%clk 0:00:20]}  Nd6 {[%clk 0:00:47]} 50. Bd3+ {[%clk 0:00:19]}  Kf6 {[%clk 0:00:56]} 51. Ke3 {[%clk 0:00:18]}  Ke6 {[%clk 0:00:59]} 52. Kf3 {[%clk 0:00:14]}  Kf6 {[%clk 0:01:06]} 1/2-1/2